bitfinex/quotes_BTCUSD_20240718
["timestamp","ask_amount","ask_price","bid_price","bid_amount"]
[1721318729426,1.69677517,63551.0,63550.0,0.00194187]
[1721318730075,1.54239343,63551.0,63550.0,0.00194187]
[1721318730286,1.55639343,63551.0,63550.0,0.00294187]
[1721318730499,1.76077517,63551.0,63550.0,0.00294187]
[1721318730765,0.18049145,63521.0,63520.0,0.000913]
[1721318730983,0.49534745,63521.0,63520.0,0.000913]
[1721318731205,0.18049145,63521.0,63520.0,0.000913]
[1721318731433,0.49534745,63521.0,63520.0,0.000913]
[1721318731658,1.12820843,63521.0,63520.0,0.000913]
[1721318732185,0.02306345,63526.0,63520.0,0.000913]
[1721318732441,0.02306345,63523.0,63522.0,0.07717479]
[1721318732688,0.02306345,63523.0,63522.0,0.27054718]
[1721318732914,0.18048645,63523.0,63522.0,0.27054718]
[1721318733162,0.18049145,63521.0,63520.0,0.000913]
[1721318733618,0.81020345,63521.0,63520.0,0.000913]
[1721318733868,1.12505945,63521.0,63520.0,0.000913]
[1721318735073,1.12505945,63521.0,63520.0,0.001913]
[1721318735302,0.18049145,63521.0,63520.0,0.001913]
[1721318735524,0.49534745,63521.0,63520.0,0.000913]
[1721318735744,0.81120345,63521.0,63520.0,0.000913]
[1721318736193,0.18149145,63521.0,63520.0,0.000913]
[1721318736417,0.49734745,63521.0,63520.0,0.000913]
[1721318736647,0.81220345,63521.0,63520.0,0.000913]
[1721318737134,1.12705945,63521.0,63520.0,0.000913]
[1721318738001,0.49734745,63521.0,63520.0,0.000913]
[1721318738229,0.18249145,63521.0,63520.0,0.000913]
[1721318738745,0.02506345,63521.0,63520.0,0.15529474]
[1721318738958,0.02506345,63521.0,63520.0,0.17829474]
[1721318739865,0.002,63521.0,63520.0,0.17829474]
[1721318740090,0.002,63521.0,63520.0,0.98642455]
[1721318740321,0.002,63521.0,63520.0,1.40224855]
[1721318740550,0.02306345,63540.0,63537.0,0.157387]
[1721318740773,0.02306345,63540.0,63538.0,0.17738174]
[1721318740998,0.02306345,63546.0,63539.0,0.07267275]
[1721318741228,0.02306345,63546.0,63540.0,0.17738174]
[1721318741229,0.46304871,63545.0,63540.0,0.17738174]
[1721318741445,0.02306345,63541.0,63540.0,0.023]
[1721318741867,0.02306345,63541.0,63540.0,0.04073817]
[1721318742077,0.02306345,63546.0,63540.0,0.2722947]
[1721318742316,0.02306345,63544.0,63541.0,0.15438174]
[1721318742540,0.02306345,63542.0,63541.0,0.15438174]
[1721318742762,0.02306345,63542.0,63541.0,0.17738174]
[1721318742980,0.02306345,63545.0,63541.0,0.25412701]
[1721318743192,0.02306345,63545.0,63542.0,0.023]
[1721318743408,0.02306345,63544.0,63543.0,0.15438174]
[1721318743665,0.008,63546.0,63543.0,0.17738174]
[1721318743666,0.03106345,63546.0,63543.0,0.17738174]
[1721318743886,0.008,63546.0,63545.0,0.472105]
[1721318744105,0.008,63546.0,63545.0,1.17028244]
[1721318744323,0.008,63546.0,63545.0,1.57061944]
[1721318744763,0.02585745,63558.0,63545.0,0.46904044]
[1721318745031,0.02306345,63556.0,63552.0,0.314702]
[1721318745243,0.314649,63563.0,63555.0,0.157343]
[1721318745244,0.02306345,63558.0,63555.0,0.157343]
[1721318745467,0.02306345,63563.0,63556.0,0.15752829]
[1721318745681,0.0007198,63564.0,63557.0,0.10332125]
[1721318745892,0.02306345,63563.0,63560.0,0.15733]
[1721318746109,0.02306345,63562.0,63561.0,0.17738174]
[1721318746342,0.0007198,63564.0,63561.0,0.56921353]
[1721318746553,0.0007198,63564.0,63563.0,0.471972]
[1721318746765,0.0007198,63564.0,63563.0,0.64935374]
[1721318746977,0.0007198,63564.0,63563.0,0.76030386]
[1721318747195,0.0007198,63564.0,63563.0,0.82560386]
[1721318747415,0.0007198,63564.0,63563.0,0.28833186]
[1721318747671,0.02378325,63564.0,63563.0,0.17738174]
[1721318747888,0.02306345,63553.0,63552.0,0.157349]
[1721318748107,0.02306345,63560.0,63552.0,0.17738174]
[1721318748321,0.02306345,63562.0,63559.0,0.157332]
[1721318748534,0.02306345,63560.0,63559.0,0.15438174]
[1721318748751,0.02306345,63560.0,63559.0,0.17738174]
[1721318748965,0.02306345,63562.0,63559.0,0.17738174]
[1721318749183,0.02306345,63562.0,63560.0,0.023]
[1721318749394,0.02306345,63553.0,63552.0,0.157351]
[1721318749599,0.02306345,63556.0,63553.0,0.25027298]
[1721318749837,0.3153678,63564.0,63554.0,0.49207274]
[1721318749838,0.02306345,63563.0,63554.0,0.49207274]
[1721318750070,0.02306345,63563.0,63557.0,0.629352]
[1721318750295,0.0007198,63564.0,63563.0,0.157324]
[1721318750505,0.0007198,63564.0,63563.0,0.31170574]
[1721318750727,0.0007198,63564.0,63563.0,0.96400174]
[1721318751424,0.0007198,63564.0,63563.0,1.34474974]
[1721318752561,0.0007198,63564.0,63563.0,1.68633429]
[1721318752825,0.0007198,63564.0,63563.0,1.84068386]
[1721318753030,0.001,63565.0,63564.0,1.415893]
[1721318753275,0.02306345,63585.0,63581.0,0.471838]
[1721318753484,0.02490715,63582.0,63581.0,0.32728813]
[1721318753708,0.02490715,63582.0,63581.0,0.1028136]
[1721318753936,0.18218415,63582.0,63581.0,0.01562739]
[1721318754152,0.49673815,63582.0,63581.0,0.01562739]
[1721318754614,0.02490715,63582.0,63581.0,0.01562739]
[1721318754827,0.0018437,63582.0,63581.0,0.19300913]
[1721318755035,0.0018437,63582.0,63581.0,0.27522404]
[1721318755248,0.02490715,63582.0,63581.0,0.27522404]
[1721318755489,0.0018437,63582.0,63581.0,0.27522404]
[1721318755699,0.0018437,63582.0,63581.0,0.43650304]
[1721318755912,0.0018437,63582.0,63581.0,1.06562104]
[1721318756122,0.02490715,63582.0,63581.0,0.74706204]
[1721318756331,0.02490715,63582.0,63581.0,0.43250304]
[1721318756539,0.0018437,63582.0,63581.0,0.75106204]
[1721318756755,0.0028437,63582.0,63581.0,0.75106204]
[1721318756971,0.0028437,63582.0,63581.0,1.06562104]
[1721318757193,0.0038437,63582.0,63581.0,1.44068004]
[1721318757411,0.0038437,63582.0,63581.0,1.78217559]
[1721318757682,0.0018437,63582.0,63581.0,1.78217559]
[1721318757899,0.0028437,63582.0,63581.0,1.77817559]
[1721318758124,0.0038437,63582.0,63581.0,1.78617559]
[1721318758347,0.0038437,63582.0,63581.0,1.83684165]
[1721318758556,0.0028437,63582.0,63581.0,1.81321426]
[1721318758767,0.0028437,63582.0,63581.0,1.78166426]
[1721318758981,0.0038437,63582.0,63581.0,1.79566426]
[1721318759200,0.0038437,63582.0,63581.0,1.83567976]
[1721318759201,0.0028437,63582.0,63581.0,1.83567976]
[1721318759411,0.0028437,63582.0,63581.0,1.78166426]
[1721318759625,0.0038437,63582.0,63581.0,1.7765482]
[1721318759835,0.0028437,63582.0,63581.0,1.7765482]
[1721318760228,0.00834,63589.0,63588.0,1.165034]
[1721318760480,0.00834,63589.0,63588.0,1.57454653]
[1721318760913,0.00834,63589.0,63588.0,1.60148308]
[1721318761366,0.00834,63589.0,63588.0,1.57454653]
[1721318761578,0.00834,63589.0,63588.0,1.62184261]
[1721318761794,0.00834,63589.0,63588.0,1.57454653]
[1721318762056,0.00083,63597.0,63590.0,0.02693655]
[1721318762264,0.00083,63597.0,63588.0,0.47371253]
[1721318762265,0.00083,63597.0,63596.0,1.25507874]
[1721318762478,0.00083,63597.0,63596.0,1.27070613]
[1721318762716,0.00083,63597.0,63596.0,1.29370613]
[1721318762936,0.00083,63597.0,63596.0,1.37060613]
[1721318763153,0.00083,63597.0,63596.0,1.5249557]
[1721318763585,0.00083,63597.0,63596.0,1.9130557]
[1721318763766,0.00183,63597.0,63596.0,1.93999225]
[1721318764205,0.00183,63597.0,63596.0,1.9130557]
[1721318764410,0.00183,63597.0,63596.0,2.35447725]
[1721318764619,0.00183,63597.0,63596.0,2.36847725]
[1721318765485,0.00183,63597.0,63596.0,2.41577333]
[1721318765738,0.00183,63597.0,63596.0,2.07435178]
[1721318765992,0.00183,63597.0,63596.0,2.0270557]
[1721318766198,0.00183,63597.0,63596.0,2.36847725]
[1721318766451,0.00183,63597.0,63596.0,2.05399225]
[1721318766691,0.00183,63597.0,63596.0,2.09876866]
[1721318766916,0.00183,63597.0,63596.0,2.41325366]
[1721318767133,0.00183,63597.0,63596.0,2.36847725]
[1721318767567,0.00183,63597.0,63596.0,2.39762627]
[1721318767829,0.00183,63597.0,63596.0,2.03836486]
[1721318768291,0.00183,63597.0,63596.0,2.31014986]
[1721318769204,0.00183,63597.0,63596.0,2.30914986]
[1721318769435,0.00183,63597.0,63596.0,2.35341233]
[1721318769653,0.00183,63597.0,63596.0,2.01199078]
[1721318769871,0.00183,63597.0,63596.0,0.60773131]
[1721318770096,0.00183,63597.0,63596.0,0.61062374]
[1721318770644,0.00183,63597.0,63596.0,1.23959374]
[1721318770862,0.00183,63597.0,63596.0,0.92510874]
[1721318771118,0.00183,63597.0,63596.0,0.61062374]
[1721318771335,0.00183,63597.0,63596.0,0.92510874]
[1721318771546,0.00183,63597.0,63596.0,1.80998255]
[1721318771785,0.00083,63608.0,63607.0,0.786075]
[1721318772018,0.00083,63608.0,63607.0,1.27051413]
[1721318772470,0.00083,63608.0,63607.0,1.29745068]
[1721318772701,0.00083,63608.0,63607.0,1.29351413]
[1721318773010,0.00083,63608.0,63607.0,1.4478637]
[1721318773224,0.00083,63608.0,63607.0,1.78923025]
[1721318773444,0.00183,63608.0,63607.0,1.78923025]
[1721318773921,0.00183,63608.0,63607.0,1.79823025]
[1721318774149,0.00183,63608.0,63607.0,1.84234304]
[1721318774591,0.00183,63608.0,63607.0,1.79823025]
[1721318774806,0.00083,63608.0,63607.0,2.12303025]
[1721318775027,0.00083,63608.0,63607.0,2.13203025]
[1721318775507,0.00834,63615.0,63613.0,0.02693655]
[1721318775718,0.00834,63615.0,63613.0,1.74964992]
[1721318775942,0.00834,63615.0,63613.0,1.84964867]
[1721318776164,0.00834,63615.0,63613.0,1.71912229]
[1721318776383,0.00834,63615.0,63613.0,1.84965034]
[1721318776612,0.00834,63615.0,63613.0,1.71912229]
[1721318776879,0.00834,63615.0,63613.0,2.00399894]
[1721318777100,0.00933,63614.0,63613.0,2.01799894]
[1721318777752,0.00933,63614.0,63613.0,1.88747186]
[1721318777970,0.00833,63614.0,63613.0,1.87347186]
[1721318778246,0.00833,63614.0,63613.0,2.003995]
[1721318778441,0.00833,63614.0,63613.0,2.017995]
[1721318778942,0.00784487,63614.0,63613.0,2.3323955]
[1721318779168,0.00784487,63614.0,63613.0,1.99105795]
[1721318779414,0.00884487,63614.0,63613.0,2.03199118]
[1721318779663,0.00884487,63614.0,63613.0,2.17089118]
[1721318781070,0.00884487,63614.0,63613.0,2.48529218]
[1721318781319,0.00884487,63614.0,63613.0,2.21488074]
[1721318781549,0.00884487,63614.0,63613.0,2.49399218]
[1721318782517,0.00835974,63614.0,63613.0,2.49399218]
[1721318782973,0.00835974,63614.0,63613.0,2.17959118]
[1721318783901,0.00835974,63614.0,63613.0,2.49399218]
[1721318784120,0.00835974,63614.0,63613.0,2.48529218]
[1721318785020,0.00835974,63614.0,63613.0,2.17089118]
[1721318787358,0.00835974,63614.0,63613.0,1.66765814]
[1721318787593,0.00835974,63614.0,63613.0,0.93885614]
[1721318787814,0.00835974,63614.0,63613.0,0.80833231]
[1721318788036,0.00835974,63614.0,63613.0,1.12273331]
[1721318788257,0.00835974,63614.0,63613.0,1.25327897]
[1721318788500,0.00835974,63614.0,63613.0,1.12273331]
[1721318788724,0.00835974,63614.0,63613.0,1.10873331]
[1721318788944,0.00835974,63614.0,63613.0,1.12073331]
[1721318789170,0.00835974,63614.0,63613.0,0.33473131]
[1721318789374,0.00835974,63614.0,63613.0,0.79433231]
[1721318789584,0.00835974,63614.0,63613.0,1.10873331]
[1721318789864,0.00835974,63614.0,63613.0,1.12173331]
[1721318790074,0.00735974,63614.0,63613.0,1.10773331]
[1721318790488,0.00835974,63614.0,63613.0,1.11873331]
[1721318790675,0.00735974,63614.0,63613.0,1.13073331]
[1721318791137,0.00835974,63614.0,63613.0,0.81533231]
[1721318791360,0.03142319,63614.0,63613.0,0.81533231]
[1721318791580,0.03142319,63614.0,63613.0,0.33273131]
[1721318791796,0.00835974,63614.0,63613.0,0.17838174]
[1721318792005,0.00835974,63614.0,63613.0,0.64998274]
[1721318792234,0.00835974,63614.0,63613.0,0.33558174]
[1721318792678,0.00835974,63614.0,63613.0,1.30178474]
[1721318793109,0.00835974,63614.0,63613.0,1.43233548]
[1721318793327,0.00835974,63614.0,63613.0,1.45613431]
[1721318793565,0.00835974,63614.0,63613.0,1.58668525]
[1721318793799,0.00835974,63614.0,63613.0,1.27228425]
[1721318794011,0.00835974,63614.0,63613.0,1.14173331]
[1721318794452,0.00835974,63614.0,63613.0,0.80433231]
[1721318794678,0.00835974,63614.0,63613.0,1.11873331]
[1721318794886,0.00835974,63614.0,63613.0,1.14173331]
[1721318797111,0.00835974,63614.0,63613.0,1.45613431]
[1721318797361,0.00835974,63614.0,63613.0,1.61362117]
[1721318797597,0.00835974,63614.0,63613.0,1.92802217]
[1721318798013,0.00835974,63614.0,63613.0,2.02802217]
[1721318798678,0.00835974,63614.0,63613.0,2.00108562]
[1721318798895,0.00735974,63614.0,63613.0,2.00402217]
[1721318799121,0.00735974,63614.0,63613.0,2.01802217]
[1721318799342,0.00835974,63614.0,63613.0,1.69068462]
[1721318799559,0.00835974,63614.0,63613.0,1.71762117]
[1721318799823,0.00835974,63614.0,63613.0,2.16253862]
[1721318800057,0.00835974,63614.0,63613.0,1.71760077]
[1721318800292,0.00835974,63614.0,63613.0,2.03200177]
[1721318801201,0.00835974,63614.0,63613.0,2.03199772]
[1721318801435,0.00835974,63614.0,63613.0,2.34639872]
[1721318801853,0.00835974,63614.0,63613.0,2.11169772]
[1721318802286,0.00835974,63614.0,63613.0,2.00506117]
[1721318802544,0.00835974,63614.0,63613.0,2.03199772]
[1721318802975,0.00835974,63614.0,63613.0,1.66766017]
[1721318803201,0.00835974,63614.0,63613.0,1.56766017]
[1721318804122,0.00835974,63614.0,63613.0,2.03954814]
[1721318804549,0.00835974,63614.0,63613.0,2.03954147]
[1721318804756,0.00835974,63614.0,63613.0,2.06254147]
[1721318805201,0.00835974,63614.0,63613.0,2.16254147]
[1721318805846,0.00835974,63614.0,63613.0,2.47694247]
[1721318806061,0.00835974,63614.0,63613.0,2.96194247]
[1721318806284,0.00834,63615.0,63614.0,1.75611455]
[1721318806501,0.00083,63617.0,63616.0,0.18412955]
[1721318806719,0.00083,63617.0,63616.0,1.4153435]
[1721318806932,0.00083,63617.0,63616.0,2.0671155]
[1721318807152,0.00833,63620.0,63619.0,1.15878455]
[1721318807377,0.46304871,63632.0,63623.0,0.53001255]
[1721318807592,0.46304871,63632.0,63623.0,2.00906621]
[1721318807841,0.00833,63633.0,63623.0,2.34641721]
[1721318808280,0.00833,63633.0,63623.0,2.03203838]
[1721318809230,0.00833,63633.0,63623.0,2.04603838]
[1721318809434,0.00833,63633.0,63623.0,2.06003838]
[1721318809646,0.07464,63624.0,63623.0,1.55020083]
[1721318809861,0.09770345,63624.0,63623.0,0.19800913]
[1721318810289,0.25487645,63624.0,63623.0,0.04362739]
[1721318810537,0.17930345,63624.0,63623.0,0.02962739]
[1721318810742,0.17930345,63624.0,63623.0,0.04362739]
[1721318810953,0.17930345,63624.0,63623.0,0.06370883]
[1721318811166,0.17930345,63624.0,63623.0,0.36126557]
[1721318811167,0.15624,63624.0,63623.0,0.36126557]
[1721318811373,0.15624,63624.0,63623.0,0.96988613]
[1721318811581,0.15624,63624.0,63623.0,1.29823713]
[1721318812044,0.00834,63624.0,63623.0,1.28423713]
[1721318812268,0.00834,63624.0,63623.0,1.4645867]
[1721318812532,0.00834,63624.0,63623.0,1.7679377]
[1721318812770,0.00834,63624.0,63623.0,1.91437949]
[1721318812985,0.00834,63624.0,63623.0,1.92837949]
[1721318814042,0.00834,63624.0,63623.0,1.58247849]
[1721318814256,0.00834,63624.0,63623.0,1.44595931]
[1721318814470,0.00834,63624.0,63623.0,1.60447391]
[1721318814700,0.00834,63624.0,63623.0,1.91882491]
[1721318814914,0.00834,63624.0,63623.0,1.91776146]
[1721318815129,0.00834,63624.0,63623.0,1.96331146]
[1721318815598,0.00834,63624.0,63623.0,1.97731146]
[1721318815816,0.00834,63624.0,63623.0,1.96331146]
[1721318816237,0.00834,63624.0,63623.0,1.97731146]
[1721318816456,0.00834,63624.0,63623.0,1.94930871]
[1721318816919,0.00834,63624.0,63623.0,1.96330875]
[1721318817560,0.00834,63624.0,63623.0,2.04290875]
[1721318817989,0.00834,63624.0,63623.0,1.96330875]
[1721318818218,0.00834,63624.0,63623.0,1.94930875]
[1721318818441,0.00834,63624.0,63623.0,1.96330875]
[1721318818656,0.00834,63624.0,63623.0,1.9223722]
[1721318818881,0.00834,63624.0,63623.0,1.9083722]
[1721318819104,0.00834,63624.0,63623.0,1.9223722]
[1721318819315,0.00834,63624.0,63623.0,1.6220212]
[1721318819572,0.00834,63624.0,63623.0,1.6130212]
[1721318819995,0.00834,63624.0,63623.0,1.63995775]
[1721318820420,0.00834,63624.0,63623.0,1.95430875]
[1721318820644,0.00834,63624.0,63623.0,1.9403054]
[1721318820889,0.00834,63624.0,63623.0,1.9543054]
[1721318821110,0.00834,63624.0,63623.0,1.9493054]
[1721318821333,0.00834,63624.0,63623.0,1.9353054]
[1721318821545,0.00833,63628.0,63627.0,1.47297555]
[1721318821762,0.00833,63628.0,63627.0,1.80675667]
[1721318821977,0.00833,63628.0,63627.0,1.83369322]
[1721318822248,0.00833,63628.0,63627.0,1.85669322]
[1721318822726,0.00833,63628.0,63627.0,2.17102422]
[1721318822940,0.00833,63628.0,63627.0,2.33937379]
[1721318823406,0.00833,63628.0,63627.0,1.98456207]
[1721318823615,0.00833,63628.0,63627.0,1.93790624]
[1721318823828,0.00833,63628.0,63627.0,1.8213977]
[1721318824042,0.00833,63628.0,63627.0,1.97883718]
[1721318824255,0.00833,63628.0,63627.0,2.29316818]
[1721318825144,0.00833,63628.0,63627.0,2.39316818]
[1721318826897,0.00833,63628.0,63627.0,2.37754079]
[1721318827131,0.00833,63633.0,63632.0,1.78717455]
[1721318827369,0.00833,63633.0,63632.0,2.2878614]
[1721318827604,0.1435,63645.0,63644.0,1.131418]
[1721318827823,0.1435,63645.0,63644.0,1.60942713]
[1721318828276,0.1435,63645.0,63644.0,1.63636368]
[1721318828530,0.0227473,63646.0,63645.0,1.1314]
[1721318828812,0.0227473,63646.0,63645.0,1.30878174]
[1721318829283,0.0227473,63646.0,63645.0,1.78043491]
[1721318829509,0.0227473,63646.0,63645.0,1.75349836]
[1721318829726,0.0227473,63646.0,63645.0,1.78043491]
[1721318829968,0.0227473,63646.0,63645.0,1.60760493]
[1721318830172,0.0227473,63646.0,63645.0,1.47713131]
[1721318830383,0.0227473,63646.0,63645.0,1.70483131]
[1721318830588,0.0227473,63646.0,63645.0,1.82130433]
[1721318831009,0.0227473,63646.0,63645.0,1.86224088]
[1721318831260,0.0227473,63646.0,63645.0,2.17648388]
[1721318831475,0.051031,63655.0,63654.0,0.157099]
[1721318831675,0.051031,63655.0,63654.0,0.40039383]
[1721318832315,0.0815,63658.0,63657.0,0.157091]
[1721318832549,0.0815,63658.0,63657.0,0.96283874]
[1721318832757,0.0815,63658.0,63657.0,1.41853306]
[1721318832990,0.00842,63672.0,63657.0,1.41853306]
[1721318832991,0.0798,63665.0,63660.0,0.785422]
[1721318833215,0.0798,63665.0,63660.0,0.85333474]
[1721318833425,0.0798,63665.0,63660.0,0.15438174]
[1721318833426,0.03139345,63661.0,63660.0,0.15438174]
[1721318833638,0.00833,63661.0,63660.0,0.34245505]
[1721318833853,0.00833,63661.0,63660.0,0.88432405]
[1721318834064,0.00833,63661.0,63660.0,0.97079305]
[1721318834308,0.00833,63661.0,63660.0,1.19849305]
[1721318834575,0.07453,63661.0,63660.0,1.19849305]
[1721318835035,0.07453,63661.0,63660.0,1.52666205]
[1721318835300,0.00833,63661.0,63660.0,1.54966205]
[1721318836007,0.00833,63661.0,63660.0,1.56366205]
[1721318836709,0.00833,63661.0,63660.0,0.92632405]
[1721318836928,0.00833,63661.0,63660.0,0.91232405]
[1721318837152,0.00833,63661.0,63660.0,0.88432405]
[1721318837383,0.00833,63661.0,63660.0,0.89832405]
[1721318837605,0.15233,63661.0,63660.0,0.59815505]
[1721318837872,0.15233,63661.0,63660.0,0.42707105]
[1721318838117,0.15233,63661.0,63660.0,0.75524005]
[1721318838338,0.15233,63661.0,63660.0,0.91232405]
[1721318838568,0.15233,63661.0,63660.0,0.59815505]
[1721318838790,0.15233,63661.0,63660.0,0.58415505]
[1721318839210,0.15233,63661.0,63660.0,0.59815505]
[1721318839639,0.15233,63661.0,63660.0,0.58415505]
[1721318839855,0.15233,63661.0,63660.0,0.91032405]
[1721318840895,0.08633,63661.0,63660.0,1.22449305]
[1721318841506,0.08633,63661.0,63660.0,0.99679305]
[1721318841719,0.08633,63661.0,63660.0,1.22449305]
[1721318841928,0.00833,63661.0,63660.0,1.22449305]
[1721318843163,0.00833,63661.0,63660.0,1.21249305]
[1721318843360,0.00833,63661.0,63660.0,1.22649305]
[1721318843599,0.00833,63661.0,63660.0,1.21249305]
[1721318844045,0.00833,63661.0,63660.0,1.2514296]
[1721318844308,0.00833,63661.0,63660.0,1.53866205]
[1721318844519,0.00833,63661.0,63660.0,1.52466205]
[1721318844725,0.00833,63661.0,63660.0,1.53866205]
[1721318845160,0.00833,63661.0,63660.0,1.52466205]
[1721318845456,0.00833,63661.0,63660.0,1.52666205]
[1721318846094,0.00833,63661.0,63660.0,1.54966205]
[1721318846299,0.00833,63661.0,63660.0,1.6045986]
[1721318846932,0.00833,63661.0,63660.0,1.9187676]
[1721318847141,0.00842,63672.0,63671.0,1.099399]
[1721318847327,0.00842,63672.0,63671.0,1.60974169]
[1721318848213,0.00832,63678.0,63677.0,0.157042]
[1721318848420,0.18006745,63693.0,63686.0,0.157018]
[1721318848628,0.313986,63698.0,63687.0,0.2041238]
[1721318848629,0.02306345,63694.0,63687.0,0.2041238]
[1721318848831,0.18006645,63693.0,63687.0,0.2041238]
[1721318849048,0.02306345,63695.0,63687.0,0.35850554]
[1721318849266,0.18006445,63694.0,63687.0,0.67254054]
[1721318849473,0.02306345,63693.0,63687.0,0.98657554]
[1721318849914,0.05,63713.0,63687.0,0.20148854]
[1721318850134,0.313979,63699.0,63689.0,0.157011]
[1721318850357,0.313979,63699.0,63690.0,0.15438174]
[1721318850580,0.156999,63695.0,63690.0,0.15438174]
[1721318851212,0.1428,63694.0,63690.0,0.15438174]
[1721318851428,0.1428,63694.0,63691.0,0.10920801]
[1721318851646,0.1428,63694.0,63691.0,0.26358975]
[1721318851837,0.0787,63694.0,63691.0,0.26358975]
[1721318852114,0.0787,63694.0,63691.0,0.57760075]
[1721318852324,0.0787,63694.0,63691.0,0.49128975]
[1721318852538,0.0787,63694.0,63692.0,0.12082389]
[1721318852752,0.0787,63694.0,63693.0,0.157003]
[1721318853002,0.0787,63694.0,63693.0,0.48663639]
[1721318853212,0.0787,63694.0,63693.0,0.64101813]
[1721318854743,0.0787,63694.0,63693.0,0.95502413]
[1721318854949,0.0787,63694.0,63693.0,1.1213737]
[1721318855415,0.0787,63694.0,63693.0,1.1093737]
[1721318856495,0.0787,63694.0,63693.0,1.1233737]
[1721318856757,0.0641,63699.0,63698.0,0.15699]
[1721318856964,0.0641,63699.0,63698.0,0.31137174]
[1721318857169,0.0641,63699.0,63698.0,0.73768551]
[1721318857913,0.0641,63699.0,63698.0,1.05166651]
[1721318858117,0.0641,63699.0,63698.0,0.26671451]
[1721318858547,0.0641,63699.0,63698.0,0.15438174]
[1721318858754,0.0641,63699.0,63698.0,0.17838174]
[1721318859070,0.0641,63699.0,63698.0,0.32423353]
[1721318859518,0.0641,63699.0,63698.0,0.65221453]
[1721318859724,0.0641,63699.0,63698.0,0.62521453]
[1721318859934,0.0641,63699.0,63698.0,0.72069752]
[1721318860139,0.0641,63699.0,63698.0,0.73369752]
[1721318860342,0.0641,63699.0,63698.0,0.41171652]
[1721318860837,0.0641,63699.0,63698.0,0.72569752]
[1721318861046,0.0641,63699.0,63698.0,0.73669752]
[1721318861454,0.0641,63699.0,63698.0,0.7354312]
[1721318861660,0.0634,63706.0,63701.0,0.313965]
[1721318861868,0.0634,63706.0,63702.0,0.24271174]
[1721318862700,0.0634,63706.0,63702.0,0.39969074]
[1721318862855,0.0634,63706.0,63702.0,0.24271174]
[1721318863490,0.220371,63706.0,63702.0,0.24271174]
[1721318863806,0.0634,63706.0,63702.0,0.24271174]
[1721318863985,0.0634,63706.0,63703.0,0.08327821]
[1721318864185,0.0634,63706.0,63704.0,0.15438174]
[1721318864861,0.00833,63709.0,63704.0,0.15438174]
[1721318865065,0.00833,63709.0,63708.0,0.470898]
[1721318865203,0.00833,63709.0,63708.0,0.64090713]
[1721318865401,0.00833,63709.0,63708.0,0.77520724]
[1721318866021,0.00833,63709.0,63708.0,1.08913924]
[1721318866216,0.00833,63709.0,63708.0,1.11013924]
[1721318866840,0.00833,63709.0,63708.0,1.12113924]
[1721318867041,0.00833,63709.0,63708.0,1.43507124]
[1721318867264,0.00833,63709.0,63708.0,1.41507124]
[1721318867671,0.00833,63709.0,63708.0,1.40307124]
[1721318867872,0.00833,63709.0,63708.0,1.41607124]
[1721318868530,0.00833,63709.0,63708.0,1.46517124]
[1721318868746,0.00833,63709.0,63708.0,1.52472124]
[1721318869265,0.00833,63709.0,63708.0,1.51572124]
[1721318869471,0.00833,63717.0,63716.0,0.78473]
[1721318869668,0.00833,63717.0,63716.0,1.49633113]
[1721318870291,0.00833,63717.0,63716.0,1.18243913]
[1721318870513,0.00833,63717.0,63716.0,1.49633113]
[1721318870774,0.00833,63717.0,63716.0,1.6506807]
[1721318872142,0.00833,63717.0,63716.0,1.3367887]
[1721318872416,0.00833,63717.0,63716.0,0.5660587]
[1721318872662,0.00833,63717.0,63716.0,0.88254713]
[1721318872898,0.00833,63717.0,63716.0,1.19643913]
[1721318873128,0.00833,63717.0,63716.0,1.52433113]
[1721318873616,0.00833,63717.0,63716.0,1.58553113]
[1721318873840,0.00833,63717.0,63716.0,1.57653113]
[1721318874066,0.00833,63717.0,63716.0,1.7448807]
[1721318874521,0.00833,63717.0,63716.0,1.7308807]
[1721318874805,0.00833,63717.0,63716.0,1.76070331]
[1721318875237,0.00833,63717.0,63716.0,1.74670331]
[1721318875476,0.00833,63717.0,63716.0,1.76070331]
[1721318875992,0.00833,63717.0,63716.0,1.77470331]
[1721318876244,0.00833,63717.0,63716.0,1.76070331]
[1721318876474,0.00833,63717.0,63716.0,1.39961131]
[1721318876720,0.00833,63717.0,63716.0,0.81256931]
[1721318876941,0.00833,63717.0,63716.0,0.82656931]
[1721318877433,0.00833,63717.0,63716.0,1.05426931]
[1721318877658,0.00833,63717.0,63716.0,1.36816131]
[1721318877898,0.00833,63717.0,63716.0,1.45435331]
[1721318878127,0.00833,63717.0,63716.0,1.44035331]
[1721318878359,0.00833,63717.0,63716.0,1.45435331]
[1721318879088,0.00833,63717.0,63716.0,1.42635331]
[1721318880093,0.00833,63717.0,63716.0,1.47180331]
[1721318880331,0.00833,63717.0,63716.0,1.53670331]
[1721318880982,0.00833,63717.0,63716.0,1.52270331]
[1721318881231,0.00833,63717.0,63716.0,0.48467731]
[1721318881473,0.00833,63717.0,63716.0,0.81256931]
[1721318881709,0.00833,63717.0,63716.0,1.11246131]
[1721318881963,0.00833,63717.0,63716.0,1.44035331]
[1721318882420,0.00833,63717.0,63716.0,1.47180331]
[1721318883833,0.00833,63717.0,63716.0,1.45780331]
[1721318884062,0.00833,63717.0,63716.0,1.78569531]
[1721318884281,0.00833,63717.0,63716.0,1.98969531]
[1721318884498,0.00833,63717.0,63716.0,2.09201705]
[1721318884950,0.00833,63717.0,63716.0,2.10601705]
[1721318885184,0.00833,63717.0,63716.0,2.10601712]
[1721318885418,0.00833,63717.0,63716.0,2.12001685]
[1721318885642,0.00833,63717.0,63716.0,2.18401685]
[1721318886042,0.00833,63717.0,63716.0,2.11992685]
[1721318886259,0.00833,63725.0,63724.0,1.129935]
[1721318886535,0.00833,63725.0,63724.0,1.62764413]
[1721318886737,0.0616,63741.0,63731.0,0.03145]
[1721318886954,0.0616,63741.0,63740.0,0.2277]
[1721318887154,0.0616,63741.0,63740.0,0.55459613]
[1721318887349,0.0616,63741.0,63740.0,0.95520944]
[1721318887758,0.0616,63741.0,63740.0,0.41373544]
[1721318887990,0.0616,63741.0,63740.0,0.95520944]
[1721318888172,0.0807,63743.0,63742.0,0.156882]
[1721318888404,0.0807,63743.0,63742.0,0.62502774]
[1721318888556,0.0807,63743.0,63742.0,0.72184718]
[1721318888935,0.0807,63743.0,63742.0,0.40808318]
[1721318889155,0.0807,63743.0,63742.0,0.25120118]
[1721318889385,0.156884,63741.0,63740.0,0.01562739]
[1721318889618,0.22293298,63741.0,63740.0,0.01562739]
[1721318890035,0.0629,63741.0,63740.0,0.01562739]